Workbook

Sheet Sheet1
A1: Photoscreen Validation Grid
A2: Alaska Blind Child Discovery
B3: Tool: | G3: Exam criteria:
B4: refer criteria: | G4: population:
B5: 3x3 contingency table: | C5: reference example | H5: enter real data HERE
B6: 2x2 contingency table | C6: Exam + | D6: Exam - | E6: LOST | H6: Exam + | I6: Exam - | J6: LOST
B7: sc + | C7: A | D7: B | E7: G | G7: sc + | H7: 50 | I7: 10 | J7: 1
B8: sc - | C8: C | D8: D | E8: H | G8: sc - | H8: 149 | I8: 767 | J8: 10
B9: sc i | C9: E | D9: F | E9: I | G9: sc i | H9: 1 | I9: 11 | J9: 1
D10: t | F10: z | I10: =H7+H8+H9+I7+I8+I9 -> 988 | J10: =J7+J8+J9 -> 12 | K10: =H7+I7+J7+H8+I8+J8+H9+I9+J9 -> 1000
A11: cell
A12: A | B12: TRUE Positive | C12: =H7 -> 50
A13: B | B13: FALSE positive | C13: =I7 -> 10 | D13: type 1 error
A14: C | B14: FALSE negative | C14: =H8 -> 149 | D14: type II error
A15: D | B15: TRUE negative | C15: =I8 -> 767
A16: E | B16: TRUE inconclusive | C16: =H9 -> 1
A17: F | B17: FALSE inconclusive | C17: =I9 -> 11
A18: G | B18: LOST positive | C18: =J7 -> 1
A19: H | B19: LOST negative | C19: =J8 -> 10
A20: I | B20: LOST inconclusive | C20: =J9 -> 1
A21: n | B21: total 2x2 | C21: =H7+I7+H8+I8 -> 976 | E21: A+B+C+D
A22: t | B22: not LOST | C22: =I10 -> 988
A23: z | B23: all screened | C23: =K10 -> 1000
B25: Sensitivity | C25: =C12/(C12+C14) -> 25.1% | E25: A/(A+C)
B26: Specificity | C26: =C15/(C13+C15) -> 98.7% | E26: D/(B+D)
B27: PPV (precision) | C27: =C12/(C12+C13) -> 83.3% | E27: A/(A+B)
B28: NPV | C28: =C15/(C14+C15) -> 83.7% | E28: D/(C+D)
B29: ABCD sens | C29: =C12/(C12+C14+C16+C17) -> 23.7% | E29: A/(A+E+E+F)
B30: ABCD spec | C30: =C15/(C13+C15+C16+C17) -> 97.2% | E30: D/(B+D+E+F)
B31: irSens | C31: =(C12+C16)/(C12+C14+C16) -> 25.5% | E31: (A+E)/(A+C+E)
B32: irSpec | C32: =C15/(C13+C15+C17) -> 97.3% | E32: D/(B+D+F)
B33: refer rate | C33: =(C12+C13+C18)/C23 -> 6% | E33: (A+B+G)/t
B34: Prescreen Prev | C34: =(C12+C14+C16)/(C12+C13+C14+C15+C16+C17) -> 20% | E34: (A+C+E)/t
B35: Accuracy | C35: =(C12+C15)/(C12+C13+C14+C15) -> 84% | E35: (A+D)/(A+B+C+D)
B36: inconclusive rate | C36: =(C16+C17+C20)/C23 -> 1.3% | E36: (E+F+I)/z
B37: lost to follow-up | C37: =(C18+C19+C20)/C23 -> 1.2% | E37: (G+H+I)/z
B38: False Pos rate (alpha) | C38: =1-C26 -> 1.3%
B39: False negative rate (beta) | C39: =1-C25 -> 74.9%
B40: Likelihood ratio positive | C40: =C25/(1-C26) -> 19.5
B41: Likelihood ratio negative | C41: =C39/C26 -> 0.8 | H41: ABCD 9/20/2014
B42: Diagnostic Odds Ratio | C42: =C40/C41 -> 25.7
